bitfinex-derivatives/quotes_SOLF0:USTF0_20241105
["timestamp","ask_amount","ask_price","bid_price","bid_amount"]
[1730840544126,3.0047,166.41,166.34,11.51687728]
[1730840544636,3.0047,166.41,166.37,3.0054]
[1730840544821,1.2875,166.43,166.37,3.0054]
[1730840545018,2.5378,166.46,166.37,3.54]
[1730840545231,2.5378,166.46,166.39,3.005]
[1730840545428,2.5378,166.46,166.37,3.54]
[1730840545625,3.0046,166.42,166.37,3.54]
[1730840546220,3.0046,166.42,166.38,3.0052]
[1730840546623,3.0044,166.43,166.37,3.54]
[1730840546825,2.5378,166.46,166.4,3.0049]
[1730840547131,2.5378,166.46,166.37,3.54]
[1730840547428,3.0043,166.44,166.39,3.005]
[1730840548832,3.0044,166.43,166.39,3.005]
[1730840549026,14.05467728,166.46,166.38,3.54]
[1730840549226,14.05467728,166.46,166.36,18.06237728]
[1730840549227,3.0049,166.41,166.36,18.06237728]
[1730840549926,3.0049,166.41,166.37,3.0054]
[1730840550127,14.05467728,166.46,166.36,15.05687728]
[1730840550331,3.0049,166.41,166.36,18.06247728]
[1730840552527,11.51687728,166.44,166.32,11.51687728]
[1730840552730,11.51687728,166.42,166.3,11.51687728]
[1730840552927,11.51687728,166.42,166.31,3.54]
[1730840553129,11.51687728,166.39,166.28,54.77687728]
[1730840553338,11.51687728,166.35,166.25,0.42815]
[1730840553525,11.51687728,166.35,166.26,7.4354]
[1730840554436,3.0064,166.32,166.27,3.0072]
[1730840554639,12.83157728,166.37,166.26,7.4354]
[1730840556133,1.277,166.36,166.27,6.5473]
[1730840556320,1.277,166.36,166.27,3.54]
[1730840557430,3.0063,166.33,166.27,3.54]
[1730840557829,1.277,166.36,166.27,3.54]
[1730840558026,1.277,166.36,166.29,0.36342]
[1730840558426,1.365,166.38,166.29,0.36342]
[1730840558731,1.365,166.38,166.29,11.88029728]
[1730840558927,3.54,166.4,166.29,11.88029728]
[1730840559536,3.0056,166.37,166.32,3.0062]
[1730840560033,3.0056,166.36,166.3,3.0066]
[1730840560329,11.51687728,166.39,166.29,0.36342]
[1730840560534,3.0065,166.32,166.29,0.36342]
[1730840562237,3.0067,166.31,166.29,0.36342]
[1730840564532,11.51687728,166.37,166.29,0.36342]
[1730840564733,3.006,166.34,166.3,3.0066]
[1730840566438,12.89007728,166.37,166.29,0.36342]
[1730840566640,11.51687728,166.35,166.29,0.36342]
[1730840567343,11.51687728,166.35,166.29,3.37032]
[1730840568343,11.51687728,166.35,166.3,3.0067]
[1730840568936,3.0061,166.34,166.3,3.0067]
[1730840570942,3.0061,166.34,166.26,3.54]
[1730840571143,3.0061,166.34,166.31,3.0065]
[1730840572545,1.3732,166.37,166.26,7.5284]
[1730840572752,1.3732,166.37,166.26,19.04527728]
[1730840574252,3.0059,166.35,166.32,3.0062]
[1730840574450,12.81057728,166.38,166.26,19.04527728]
[1730840574451,12.81057728,166.38,166.28,11.51687728]
[1730840574654,11.51687728,166.38,166.28,11.51687728]
[1730840574957,3.0056,166.37,166.31,3.0065]
[1730840575147,11.51687728,166.38,166.28,11.51687728]
[1730840576449,3.0057,166.36,166.33,3.0061]
[1730840579052,3.0062,166.33,166.3,3.0067]
[1730840579359,11.51687728,166.38,166.28,15.05687728]
[1730840580048,3.0056,166.36,166.33,3.0061]
[1730840580655,15.05687728,166.4,166.3,11.51687728]
[1730840580850,15.05687728,166.4,166.35,3.0057]
[1730840581155,15.05687728,166.4,166.3,11.51687728]
[1730840581359,3.0053,166.38,166.34,3.0059]
[1730840581552,11.51687728,166.38,166.28,3.54]
[1730840581856,3.006,166.35,166.31,3.0065]
[1730840582050,3.54,166.4,166.28,3.54]
[1730840582051,11.51687728,166.36,166.28,3.54]
[1730840582654,3.0062,166.34,166.3,3.0066]
[1730840584153,11.51687728,166.36,166.28,3.54]
[1730840584361,3.0059,166.35,166.31,3.0065]
[1730840585360,1.2895,166.39,166.33,3.006]
[1730840585361,3.0055,166.37,166.33,3.006]
[1730840586253,3.0056,166.36,166.33,3.006]
[1730840586758,1.2895,166.39,166.29,11.51687728]
[1730840587062,14.12847728,166.42,166.31,11.51687728]
[1730840588162,3.0051,166.39,166.35,3.0057]
[1730840588364,14.12847728,166.42,166.3,11.51687728]
[1730840588560,14.12847728,166.42,166.31,3.54]
[1730840588763,3.0051,166.4,166.36,3.0056]
[1730840590763,3.0051,166.39,166.36,3.0056]
[1730840591355,3.54,166.52,166.37,11.51687728]
[1730840591556,11.51687728,166.5,166.39,11.51687728]
[1730840591764,11.51687728,166.47,166.36,15.05687728]
[1730840591965,3.0044,166.44,166.36,15.05687728]
[1730840593166,3.0047,166.42,166.37,3.54]
[1730840593464,3.0047,166.42,166.38,3.54]
[1730840594361,3.0047,166.42,166.38,6.5451]
[1730840595162,11.51687728,166.43,166.35,3.54]
[1730840595371,11.51687728,166.43,166.2,8.74603302]
[1730840595372,11.51687728,166.43,166.36,3.54]
[1730840595661,11.51687728,166.43,166.35,3.54]
[1730840595866,11.51687728,166.43,166.35,6.5458]
[1730840595867,3.0052,166.39,166.35,6.5458]
[1730840596768,3.0052,166.39,166.35,3.0058]
[1730840596960,3.0052,166.39,166.35,6.5458]
[1730840598771,11.51687728,166.43,166.35,3.54]
[1730840598978,14.18537728,166.43,166.35,3.54]
[1730840599469,3.0053,166.39,166.35,6.5457]
[1730840599661,14.18537728,166.43,166.35,3.54]
[1730840600276,3.005,166.4,166.36,3.0055]
[1730840602668,14.18537728,166.43,166.35,3.52]
[1730840603072,3.0056,166.37,166.33,3.52]
[1730840603271,3.0056,166.37,166.33,6.5261]
[1730840603981,3.0056,166.37,166.33,3.52]
[1730840604181,3.0056,166.37,166.34,3.006]
[1730840604475,3.0056,166.37,166.33,3.52]
[1730840606177,11.51687728,166.4,166.29,0.40226]
[1730840606479,11.51687728,166.4,166.29,3.92226]
[1730840606980,11.51687728,166.35,166.29,0.40226]
[1730840607383,11.51687728,166.37,166.29,0.40226]
[1730840607581,3.0063,166.33,166.29,0.40226]
[1730840607876,11.51687728,166.37,166.29,0.40226]
[1730840609377,3.0061,166.34,166.3,3.0067]
[1730840609570,11.51687728,166.37,166.29,3.92226]
[1730840609979,3.0062,166.33,166.29,3.92226]
[1730840611483,3.0062,166.33,166.29,6.92916]
[1730840612781,11.51687728,166.37,166.29,0.40226]
[1730840613083,11.51687728,166.34,166.29,0.40226]
[1730840613273,3.0067,166.3,166.29,0.40226]
[1730840614183,11.51687728,166.34,166.29,0.40226]
[1730840614682,4.042,166.36,166.29,0.40226]
[1730840615384,3.0065,166.32,166.29,0.40226]
[1730840617178,4.042,166.36,166.29,0.40226]
[1730840617179,3.0066,166.31,166.29,0.40226]
[1730840619979,3.0066,166.31,166.29,0.40226]
[1730840621092,11.51687728,166.3,166.13,17.03208831]
[1730840621391,11.51687728,166.3,166.18,11.51687728]
[1730840621578,3.0076,166.26,166.18,11.51687728]
[1730840623791,3.0076,166.26,166.22,0.50594]
[1730840624688,3.0075,166.26,166.22,3.51404]
[1730840627995,11.51687728,166.3,166.22,0.50594]
[1730840628194,15.03687728,166.34,166.23,11.51687728]
[1730840628391,3.52,166.34,166.23,12.78157728]
[1730840628697,3.0065,166.31,166.26,3.0073]
[1730840629088,3.52,166.34,166.26,3.0073]
[1730840629291,3.0067,166.3,166.24,1.3195]
[1730840629494,3.0067,166.3,166.27,3.0073]
[1730840629687,3.0065,166.32,166.26,3.52]
[1730840629887,7.562,166.36,166.28,3.007]
[1730840630194,4.042,166.36,166.26,3.52]
[1730840630592,2.6674,166.36,166.28,11.51687728]
[1730840630799,15.03687728,166.39,166.28,11.51687728]
[1730840632293,3.006,166.34,166.3,3.0066]
[1730840634002,15.03687728,166.39,166.3,3.0066]
[1730840634190,3.0062,166.33,166.3,3.0066]
[1730840642324,3.0064,166.32,166.29,10.39969619]
[1730840643118,2.6901,166.38,166.28,7.39289619]
[1730840643119,7.39289619,166.34,166.28,7.39289619]
[1730840643620,3.0069,166.29,166.28,7.39289619]
[1730840643813,7.39289619,166.32,166.26,10.91289619]
[1730840644623,3.0071,166.28,166.26,10.91289619]
[1730840644829,7.39289619,166.3,166.26,3.52]
[1730840645326,3.0072,166.28,166.25,10.40039619]
[1730840645723,7.39289619,166.27,166.18,2.6353]
[1730840645921,7.39289619,166.27,166.19,3.52]
[1730840646223,7.39289619,166.27,166.2,7.39289619]
[1730840646525,3.0076,166.25,166.2,10.40139619]
[1730840646727,7.39289619,166.27,166.2,10.40139619]
[1730840647920,3.52,166.34,166.21,10.40119619]
[1730840648127,7.39289619,166.27,166.21,10.40119619]
[1730840648429,7.39289619,166.26,166.2,7.39289619]
[1730840648619,7.39289619,166.26,166.2,10.40139619]
[1730840648924,3.0079,166.24,166.2,10.40139619]
[1730840649321,3.0079,166.24,166.2,3.0085]
[1730840649527,3.0079,166.24,166.18,7.5218]
[1730840649722,3.0079,166.24,166.19,3.0086]
[1730840649920,3.0076,166.25,166.18,7.5218]
[1730840650125,1.3259,166.28,166.18,7.5218]
[1730840650326,1.3259,166.28,166.19,3.0086]
[1730840650626,3.008,166.23,166.19,3.0086]
[1730840652123,1.3259,166.28,166.19,3.0086]
[1730840652326,2.6038,166.28,166.19,3.0086]
[1730840652829,3.0081,166.23,166.19,3.0086]
[1730840657827,2.6038,166.28,166.18,4.0018]
[1730840658025,3.0084,166.21,166.17,11.54944942]
[1730840659230,3.0084,166.21,166.17,3.0089]
[1730840659831,3.0083,166.22,166.18,3.0088]
[1730840660026,11.54944942,166.27,166.18,3.0088]
[1730840660923,3.0083,166.22,166.18,3.0088]
[1730840661731,11.54944942,166.27,166.18,3.0088]
[1730840661930,3.0084,166.21,166.18,3.0088]
[1730840663037,11.54944942,166.25,166.14,4.0133]
[1730840663232,3.0085,166.21,166.17,3.009]
[1730840664434,3.0086,166.2,166.17,3.009]
[1730840664621,11.54944942,166.25,166.14,19.08274942]
[1730840664823,3.0086,166.2,166.16,3.0091]
[1730840665129,3.52,166.24,166.14,2.6281]
[1730840665636,3.52,166.24,166.15,3.0094]
[1730840666631,3.52,166.24,166.12,15.06944942]
[1730840667140,11.54944942,166.22,166.12,3.52]
[1730840667739,11.54944942,166.22,166.11,15.06944942]
[1730840668525,11.54944942,166.22,166.11,3.52]
[1730840668737,3.0092,166.17,166.11,15.06944942]
[1730840669129,11.54944942,166.2,166.07,0.24633]
[1730840669332,3.0094,166.16,166.12,3.0099]
[1730840669537,7.4002197,166.17,166.12,3.0099]
[1730840670241,3.0094,166.15,166.12,3.0099]
[1730840671832,7.4002197,166.17,166.12,3.0099]
[1730840672037,3.0093,166.16,166.12,3.0099]
[1730840677240,3.0093,166.16,166.11,7.4002197]
[1730840677439,3.0093,166.16,166.13,3.0098]
[1730840677642,7.4002197,166.17,166.09,3.52]
[1730840677845,3.0096,166.15,166.11,10.4102197]
[1730840678043,3.52,166.19,166.11,7.4002197]
[1730840678246,7.4002197,166.18,166.11,7.4002197]
[1730840679247,3.0093,166.16,166.13,3.0097]
[1730840685854,3.0091,166.17,166.11,7.4002197]
[1730840686955,3.0091,166.17,166.13,3.0096]
[1730840687356,3.009,166.18,166.12,7.4002197]
[1730840687545,2.5742,166.21,166.14,7.4002197]
[1730840687751,7.4002197,166.18,166.1,3.9407]
[1730840688051,10.4091197,166.18,166.13,3.0097]
[1730840688850,10.4091197,166.18,166.12,7.4002197]
[1730840689052,10.4091197,166.18,166.14,3.0096]
[1730840690556,7.4002197,166.18,166.14,3.0096]
[1730840690758,3.0091,166.17,166.14,3.0096]
[1730840695667,3.0089,166.18,166.15,3.0094]
[1730840696361,3.0089,166.18,166.15,10.4096197]
[1730840696764,3.0087,166.19,166.16,7.4002197]
[1730840697258,3.0087,166.19,166.1,6.88098436]
[1730840697465,7.4002197,166.2,166.1,3.9407]
[1730840697665,7.4002197,166.19,166.14,7.4002197]
[1730840697867,3.0091,166.17,166.14,10.4097197]
[1730840698067,7.4002197,166.19,166.14,7.4002197]
[1730840698461,3.009,166.18,166.15,3.0094]
[1730840700560,3.0088,166.19,166.16,3.0092]
[1730840700761,7.4002197,166.2,166.14,7.4002197]
[1730840701562,3.52,166.22,166.1,3.9407]
[1730840701563,7.4002197,166.21,166.15,7.4002197]
[1730840702166,3.0089,166.18,166.15,10.4096197]
[1730840703370,3.0089,166.18,166.16,0.71]
[1730840704567,3.5,166.25,166.16,8.1102197]
[1730840704772,7.4002197,166.22,166.16,8.1102197]
[1730840705162,7.4002197,166.21,166.16,8.1102197]
[1730840705766,3.0087,166.19,166.16,11.1194197]
[1730840707472,3.0087,166.19,166.16,8.1102197]
[1730840707676,3.0087,166.19,166.17,3.0091]
[1730840707867,3.0087,166.19,166.17,4.1291]
[1730840708670,3.0087,166.19,166.17,1.12]
[1730840709277,3.0089,166.18,166.17,1.12]
[1730840711573,3.0088,166.19,166.17,1.12]
[1730840712671,7.4002197,166.21,166.17,1.12]
[1730840713874,3.0089,166.19,166.17,1.12]
[1730840714779,3.0089,166.19,166.17,8.32]
[1730840716681,3.0089,166.18,166.17,8.32]
[1730840717181,3.0081,166.23,166.17,8.32]
[1730840717382,2.7108,166.27,166.17,8.32]
[1730840717695,11.34046575,166.29,166.22,7.4002197]
[1730840717881,3.0073,166.27,166.24,10.4080197]
[1730840718183,11.34046575,166.29,166.24,7.4002197]
[1730840718370,3.0071,166.28,166.25,3.0075]
[1730840719285,3.0071,166.28,166.24,7.4002197]
[1730840719478,3.0071,166.28,166.24,10.4079197]
[1730840720082,3.0073,166.27,166.25,0.71]
[1730840720272,7.4002197,166.26,166.06,35.75938965]
[1730840720477,7.4002197,166.25,166.13,2.7091]
[1730840720686,7.4002197,166.23,166.17,14.6002197]
[1730840720983,7.4002197,166.23,166.17,17.6092197]
[1730840721184,3.0085,166.21,166.17,17.6092197]
[1730840721379,7.4002197,166.23,166.17,17.6092197]
[1730840721981,3.0085,166.21,166.17,17.6092197]
[1730840722479,3.0081,166.23,166.19,10.4088197]
[1730840723085,3.0082,166.22,166.19,10.4088197]
[1730840723485,3.0082,166.22,166.19,7.4002197]
[1730840724084,3.0084,166.21,166.18,10.4090197]
[1730840724891,4.7852,166.3,166.19,7.4002197]
[1730840725081,4.7852,166.3,166.23,7.4002197]
[1730840725082,1.2852,166.3,166.23,7.4002197]
[1730840725284,8.6854197,166.3,166.23,7.4002197]
[1730840725778,3.0074,166.27,166.23,10.4081197]
[1730840726277,7.4002197,166.24,166.17,8.5214]
[1730840726577,7.4002197,166.23,166.17,15.9216197]
[1730840726780,7.4002197,166.23,166.18,3.0089]
[1730840727183,7.4002197,166.23,166.17,14.6002197]
[1730840727487,7.4002197,166.21,166.17,7.2]
[1730840728802,3.0087,166.2,166.17,7.2]
[1730840729590,3.0087,166.2,166.17,10.209]
[1730840729781,3.0087,166.2,166.17,7.2]
[1730840730288,1.3756,166.27,166.19,7.4002197]
[1730840730490,1.3756,166.27,166.23,7.4002197]
[1730840731491,3.0077,166.25,166.23,7.4002197]
[1730840731791,8.7758197,166.27,166.18,4.7701]
[1730840731989,7.4002197,166.25,166.19,7.4002197]
[1730840732294,3.0083,166.22,166.19,7.4002197]
[1730840733186,3.0084,166.21,166.2,1.12]
[1730840733390,1.3756,166.27,166.2,8.5202197]
[1730840733688,7.4002197,166.26,166.2,8.5202197]
[1730840734080,7.4002197,166.28,166.22,7.4002197]
[1730840734295,3.0073,166.27,166.24,3.0077]
[1730840735188,3.0071,166.28,166.24,3.0077]
[1730840735397,3.5,166.35,166.26,7.4002197]
[1730840735695,7.4002197,166.36,166.3,7.4002197]
[1730840735991,7.4002197,166.36,166.3,10.4068197]
[1730840735992,3.0061,166.34,166.3,10.4068197]
[1730840736198,3.0061,166.34,166.32,7.4002197]
[1730840736691,3.0062,166.33,166.3,7.4002197]
[1730840737799,3.0062,166.33,166.29,3.0068]
[1730840738798,11.55125715,166.36,166.28,3.5]
[1730840738987,11.55125715,166.34,166.24,6.0352]
[1730840739696,11.55125715,166.34,166.24,3.5]
[1730840739892,11.55125715,166.31,166.24,3.5]
[1730840740599,3.0075,166.26,166.24,3.5]
[1730840741598,3.0078,166.25,166.23,4.65]
[1730840742094,3.0075,166.26,166.23,9.15]
[1730840745200,3.0075,166.26,166.23,12.158]
[1730840745893,3.0075,166.26,166.23,11.958]
[1730840746095,11.55125715,166.31,166.23,8.95]
[1730840746290,1.3231,166.3,166.23,8.95]
[1730840746486,3.0071,166.28,166.23,8.95]
[1730840746688,1.3231,166.3,166.23,8.95]
[1730840746997,11.55125715,166.29,166.23,8.95]
[1730840747205,3.0078,166.24,166.23,8.95]
[1730840747893,3.0076,166.26,166.23,8.95]
[1730840748403,3.0076,166.25,166.23,8.95]
[1730840749088,1.3231,166.3,166.23,8.95]
[1730840749400,3.0078,166.24,166.23,8.95]
[1730840755495,3.0078,166.24,166.23,4.5]
[1730840757706,3.0077,166.25,166.23,4.5]
[1730840758203,1.3231,166.3,166.23,4.5]
[1730840758500,3.0078,166.24,166.23,4.5]
[1730840760597,1.3231,166.3,166.23,4.5]
[1730840760797,7.39131969,166.3,166.25,7.39131969]
[1730840760994,7.39131969,166.28,166.23,4.5]
[1730840761302,3.0078,166.24,166.23,4.5]
[1730840762606,3.0078,166.24,166.23,5.62]
[1730840764203,3.0076,166.26,166.23,5.62]
[1730840764507,7.39131969,166.3,166.23,13.01131969]
[1730840764710,3.0074,166.26,166.23,16.01921969]
[1730840767803,7.39131969,166.3,166.23,13.01131969]
[1730840768004,3.0075,166.26,166.23,16.01921969]
[1730840769708,3.0075,166.26,166.23,20.46921969]
[1730840770706,3.0071,166.28,166.25,10.39881969]
[1730840772612,3.0071,166.28,166.26,4.7]
[1730840773404,3.5,166.31,166.26,4.7]
[1730840773620,3.0071,166.28,166.26,4.7]
[1730840774304,3.5,166.31,166.26,4.7]
[1730840774619,3.0073,166.27,166.26,4.7]
[1730840778017,10.39861969,166.27,166.26,4.7]
[1730840778611,3.0073,166.27,166.26,4.7]
[1730840786318,3.0073,166.27,166.26,5.82]
[1730840788426,3.0073,166.27,166.26,10.12]
[1730840788915,3.0073,166.27,166.26,17.51131969]
[1730840789119,3.0073,166.27,166.26,10.12]
[1730840791921,7.39131969,166.3,166.26,10.12]
[1730840792128,18.72856602,166.31,166.26,10.12]
[1730840792330,18.72856602,166.31,166.27,7.39131969]
[1730840792331,11.33724633,166.31,166.27,7.39131969]
[1730840793023,3.007,166.29,166.27,7.39131969]
[1730840793826,11.33724633,166.31,166.28,7.39131969]
[1730840794032,11.33724633,166.31,166.3,7.39131969]
[1730840794526,14.34374633,166.31,166.3,7.39131969]
[1730840794729,11.33724633,166.31,166.3,7.39131969]
[1730840796334,11.33724633,166.31,166.3,10.39801969]
[1730840797036,3.0061,166.34,166.3,10.39801969]
[1730840797332,3.0061,166.34,166.32,7.39131969]
[1730840798729,11.31288271,166.39,166.33,7.39131969]
[1730840798925,12.13681969,166.4,166.34,7.39131969]
[1730840799128,3.0055,166.37,166.34,7.39131969]
[1730840800630,14.31788271,166.4,166.36,10.39681969]
[1730840800837,4.7775,166.44,166.33,3.48]
[1730840800838,11.31288271,166.43,166.38,7.39131969]
[1730840801135,11.31288271,166.43,166.39,7.39131969]
[1730840801327,3.0046,166.42,166.39,14.18131969]
[1730840801729,11.31288271,166.43,166.41,7.39131969]
[1730840802135,11.31288271,166.43,166.42,7.39131969]
[1730840803025,11.31288271,166.43,166.42,11.79131969]
[1730840803230,9.22838271,166.43,166.42,14.79581969]
[1730840803427,9.43292138,166.48,166.42,11.79131969]
[1730840803731,3.0034,166.49,166.46,7.39131969]
[1730840806639,7.39131969,166.51,166.45,7.39131969]
[1730840806828,7.39131969,166.5,166.42,4.4]
[1730840807033,7.39131969,166.48,166.42,15.27131969]
[1730840807235,3.004,166.46,166.42,15.27131969]
[1730840807445,11.53565556,166.51,166.42,7.88]
[1730840807632,11.53565556,166.49,166.42,7.88]
[1730840807836,11.53565556,166.49,166.42,4.4]
[1730840808038,14.99565556,166.49,166.42,4.4]
[1730840808236,3.0044,166.43,166.42,4.4]
[1730840810042,3.46,166.49,166.42,4.4]
[1730840811237,3.0041,166.45,166.42,4.4]
[1730840811741,14.99565556,166.49,166.42,4.4]
[1730840812036,3.0044,166.43,166.42,4.4]
[1730840815350,3.0049,166.4,166.39,6.79]
[1730840818550,3.0049,166.4,166.39,2.8016]
[1730840818753,3.0049,166.4,166.39,0.7181]
[1730840820354,11.53565556,166.42,166.37,1.11]
[1730840820556,3.0053,166.38,166.37,1.11]
[1730840833258,10.84962641,166.39,166.36,2.12]
[1730840833456,10.39502641,166.37,166.36,2.12]
[1730840834257,10.39502641,166.37,166.13,10.51509125]
[1730840834258,25.44962641,166.37,166.13,10.51509125]
[1730840834458,7.38962641,166.28,166.21,7.38962641]
[1730840834764,3.0074,166.27,166.22,3.0081]
[1730840835461,15.02930709,166.31,166.21,3.0083]
[1730840835666,15.02930709,166.31,166.2,12.81160709]
[1730840836360,3.0075,166.26,166.21,3.0083]
[1730840841175,3.0086,166.2,166.15,2.6599]
[1730840841470,11.54930709,166.24,166.15,2.6599]
[1730840843376,3.009,166.18,166.15,2.6599]
[1730840843877,11.54930709,166.22,166.15,2.6599]
[1730840844076,3.46,166.21,166.12,4.3072]
[1730840844582,3.0092,166.17,166.12,4.3072]
[1730840844879,3.46,166.21,166.12,4.3072]
[1730840845673,3.0092,166.17,166.12,4.3072]
[1730840845872,3.46,166.21,166.12,4.3072]
[1730840846074,11.54930709,166.2,166.12,1.2973]
[1730840846673,3.009,166.18,166.12,1.2973]
[1730840846875,11.54930709,166.2,166.12,1.2973]
[1730840847784,3.0092,166.17,166.12,4.3072]
[1730840848879,3.0093,166.16,166.12,4.3072]
[1730840849079,11.54930709,166.2,166.12,4.3072]
[1730840849279,11.54930709,166.2,166.13,3.0098]
[1730840849475,3.0091,166.17,166.12,1.2973]
[1730840849781,3.0091,166.17,166.12,4.3072]
[1730840850888,3.0093,166.16,166.12,4.3072]
[1730840854482,3.0091,166.17,166.13,3.0098]
[1730840854883,3.0091,166.17,166.12,1.2973]
[1730840855284,3.0091,166.17,166.12,4.3072]
[1730840855485,3.0091,166.17,166.12,11.70757001]
[1730840855688,3.0094,166.16,166.12,11.70757001]
[1730840856787,3.0088,166.19,166.14,10.40987001]
[1730840857084,1.3696,166.27,166.14,7.40037001]
[1730840857291,3.0087,166.19,166.15,3.0094]
[1730840861195,7.40037001,166.2,166.14,7.40037001]
[1730840861391,10.40897001,166.2,166.16,3.0092]
[1730840864398,3.0087,166.19,166.15,3.0093]
[1730840867098,7.40037001,166.2,166.13,13.49987001]
[1730840867899,7.40037001,166.2,166.15,3.0094]
[1730840868699,3.0088,166.19,166.15,3.0094]
[1730840868898,3.0088,166.19,166.13,13.49987001]
[1730840869608,3.0088,166.19,166.15,3.0094]
[1730840870708,3.0089,166.18,166.15,3.0094]
[1730840871904,3.0089,166.18,166.13,6.0995]
[1730840872110,7.40037001,166.17,166.13,1.3086]
[1730840872299,7.40037001,166.17,166.12,1.2973]
[1730840872300,7.40037001,166.15,166.12,1.2973]
[1730840873111,3.0096,166.14,166.12,1.2973]
[1730840874114,7.40037001,166.17,166.12,1.2973]
[1730840874308,3.46,166.21,166.14,7.40037001]
[1730840874614,7.40037001,166.2,166.14,7.40037001]
[1730840874909,3.0089,166.18,166.14,10.40987001]
[1730840876318,3.0089,166.18,166.14,7.40037001]
[1730840876606,3.0089,166.18,166.15,3.0094]
[1730840877712,7.40037001,166.2,166.15,3.0094]
[1730840877914,10.40897001,166.2,166.16,3.0091]
[1730840878109,3.0086,166.2,166.15,7.40037001]
[1730840878407,7.40037001,166.21,166.15,7.40037001]
[1730840878614,3.46,166.24,166.15,7.40037001]
[1730840878908,7.40037001,166.23,166.17,7.40037001]
[1730840879312,7.40037001,166.23,166.17,10.40927001]
[1730840879313,3.0084,166.21,166.17,10.40927001]
[1730840880408,7.40037001,166.23,166.17,7.40037001]
[1730840881304,3.0084,166.21,166.17,10.40937001]
[1730840885016,3.0096,166.15,166.12,1.2973]
[1730840885309,7.40037001,166.13,166.08,2.6985]
[1730840885616,3.01,166.12,166.08,2.6985]
[1730840886817,7.40037001,166.13,166.08,2.6985]
[1730840887013,7.40037001,166.12,166.08,2.6985]
[1730840887210,7.40037001,166.12,166.08,1.386]
[1730840887916,3.0102,166.11,166.08,1.386]
[1730840888312,3.0104,166.1,166.08,1.386]
[1730840888516,3.0104,166.1,166.07,0.28527]
[1730840889315,7.40037001,166.12,166.07,0.28527]
[1730840889521,7.40037001,166.1,166.07,0.28527]
[1730840890317,3.0107,166.08,166.07,0.28527]
[1730840891311,10.41107001,166.08,166.07,0.28527]
[1730840892514,3.0112,166.05,166.04,2.75124135]
[1730840893720,3.0112,166.05,166.01,3.0119]
[1730840894222,3.0115,166.04,165.99,7.40037001]
[1730840894612,7.40037001,166.06,165.99,7.40037001]
[1730840894818,10.41197001,166.04,165.99,3.0122]
[1730840895223,7.40037001,166.04,165.98,10.86037001]
[1730840895419,3.0117,166.03,165.99,3.0123]
[1730840895716,7.40037001,166.04,166.0,0.38268]
[1730840896122,3.0116,166.03,166.0,0.38268]
[1730840896326,7.40037001,166.04,166.0,0.38268]
[1730840896924,7.40037001,166.05,166.0,0.38268]
[1730840897934,3.0119,166.02,166.0,0.38268]
[1730840899935,1.3632,166.13,166.01,7.40037001]
[1730840900133,4.8232,166.13,166.04,7.40037001]
[1730840900332,7.40037001,166.09,166.04,7.40037001]
[1730840900731,7.40037001,166.09,166.03,7.40037001]
[1730840900933,7.40037001,166.07,166.01,10.86037001]
[1730840901137,3.0115,166.04,166.01,10.86037001]
[1730840904737,3.0115,166.04,166.01,3.46]
[1730840905242,3.0115,166.04,166.0,10.79515001]
[1730840905638,7.40037001,166.05,166.0,10.79515001]
[1730840905838,3.0115,166.04,166.0,10.79515001]
[1730840906343,7.40037001,166.01,166.0,0.38268]
[1730840906542,10.41237001,166.01,166.0,0.38268]
[1730840906841,3.012,166.01,166.0,0.38268]
[1730840907046,1.351,166.07,166.0,0.38268]
[1730840907347,7.40037001,166.04,166.0,0.38268]
[1730840907540,3.46,166.06,166.0,0.38268]
[1730840907541,3.0118,166.02,166.0,0.38268]
[1730840912050,3.012,166.01,166.0,0.38268]
[1730840912447,10.41237001,166.01,166.0,0.38268]
[1730840913754,3.0128,165.97,165.93,6.4734]